bitfinex/quotes_BTCUSD_20221001
["timestamp","ask_amount","ask_price","bid_price","bid_amount"]
[1664589426269,0.00208444,19431.0,19430.0,2.84242487]
[1664589426477,0.128554,19434.0,19430.0,2.84242487]
[1664589426478,0.128554,19434.0,19430.0,2.76442487]
[1664589426719,0.128554,19434.0,19433.0,0.04400496]
[1664589426945,0.130749,19435.0,19433.0,0.6057364]
[1664589427200,0.48832,19435.0,19433.0,1.76356768]
[1664589427410,0.00208444,19434.0,19433.0,1.66947522]
[1664589427637,0.35965544,19434.0,19433.0,1.41225722]
[1664589427854,0.00208444,19434.0,19433.0,1.41225722]
[1664589428077,0.00208444,19434.0,19433.0,1.92683322]
[1664589428538,0.35965544,19434.0,19433.0,1.54091944]
[1664589429071,0.00208444,19434.0,19433.0,1.61891944]
[1664589430498,0.00208444,19434.0,19433.0,1.54091944]
[1664589431114,0.35965544,19434.0,19433.0,1.54091944]
[1664589431329,0.35965544,19434.0,19433.0,1.61891944]
[1664589431532,0.00208444,19434.0,19433.0,1.61891944]
[1664589432427,0.00208444,19434.0,19433.0,1.54091944]
[1664589432769,0.00208444,19434.0,19433.0,1.54412744]
[1664589433298,0.00208444,19434.0,19433.0,1.62212744]
[1664589433738,0.04116855,19434.0,19433.0,1.62212744]
[1664589433983,0.35965544,19434.0,19433.0,1.10755144]
[1664589434626,0.00208444,19434.0,19433.0,1.02955144]
[1664589435215,0.35965544,19434.0,19433.0,1.10755144]
[1664589435439,0.00208444,19434.0,19433.0,1.10755144]
[1664589436465,0.00208444,19434.0,19433.0,1.02955144]
[1664589436853,0.0322638,19434.0,19433.0,0.51782]
[1664589437072,0.3898348,19434.0,19433.0,0.003208]
[1664589437280,0.3898348,19434.0,19433.0,0.081208]
[1664589437281,0.69944132,19434.0,19433.0,0.081208]
[1664589437629,0.34187032,19434.0,19433.0,0.081208]
[1664589438080,0.69944132,19434.0,19433.0,0.081208]
[1664589438522,0.69944132,19434.0,19433.0,0.003208]
[1664589438751,0.73985344,19434.0,19433.0,0.003208]
[1664589439233,0.43024692,19434.0,19433.0,0.081208]
[1664589439449,0.3898348,19434.0,19433.0,0.081208]
[1664589439674,0.69944132,19434.0,19433.0,0.081208]
[1664589440113,0.73985344,19434.0,19433.0,0.081208]
[1664589440630,0.43024692,19434.0,19433.0,0.003208]
[1664589440849,0.73985344,19434.0,19433.0,0.003208]
[1664589441010,0.73985344,19434.0,19433.0,0.131855]
[1664589441228,0.73985344,19434.0,19433.0,0.209855]
[1664589441673,0.43024692,19434.0,19433.0,0.209855]
[1664589442947,0.43024692,19434.0,19433.0,0.131855]
[1664589443155,0.43024692,19434.0,19433.0,0.209855]
[1664589443746,0.73985344,19434.0,19433.0,0.209855]
[1664589444119,0.43024692,19434.0,19433.0,0.209855]
[1664589444521,0.43024692,19434.0,19433.0,0.131855]
[1664589444769,0.39798312,19434.0,19433.0,0.131855]
[1664589445004,0.04041212,19434.0,19433.0,0.131855]
[1664589445214,0.04041212,19434.0,19433.0,0.209855]
[1664589445507,0.36032983,19435.0,19433.0,0.209855]
[1664589445705,0.357571,19434.0,19433.0,0.209855]
[1664589446539,0.39798312,19434.0,19433.0,0.131855]
[1664589446924,0.39798312,19434.0,19433.0,0.003208]
[1664589447135,0.39798312,19434.0,19433.0,0.081208]
[1664589448411,0.39798312,19434.0,19433.0,0.003208]
[1664589449083,0.70758964,19434.0,19433.0,0.003208]
[1664589449300,0.39798312,19434.0,19433.0,0.081208]
[1664589450446,0.39798312,19434.0,19433.0,0.003208]
[1664589450672,0.70758964,19434.0,19433.0,0.003208]
[1664589451164,0.39798312,19434.0,19433.0,0.003208]
[1664589451494,0.39798312,19434.0,19433.0,0.081208]
[1664589451949,0.49517145,19436.0,19435.0,0.04400496]
[1664589452185,1.23802885,19436.0,19435.0,0.04400496]
[1664589452404,1.59555085,19436.0,19433.0,0.081208]
[1664589452576,0.357522,19435.0,19433.0,0.003208]
[1664589452784,0.357522,19434.0,19433.0,0.003208]
[1664589453489,0.357522,19434.0,19433.0,0.080208]
[1664589453920,0.4061291,19434.0,19433.0,0.080208]
[1664589454198,0.0486071,19434.0,19433.0,0.080208]
[1664589454426,0.4061291,19434.0,19433.0,0.080208]
[1664589454648,0.4061291,19434.0,19433.0,0.003208]
[1664589455229,0.4061291,19434.0,19433.0,0.080208]
[1664589456560,0.4061291,19434.0,19433.0,0.003208]
[1664589457106,0.257098,19435.0,19433.0,2.18827748]
[1664589457336,0.128549,19435.0,19434.0,0.04400496]
[1664589457780,0.486071,19435.0,19434.0,0.04400496]
[1664589458026,0.128549,19435.0,19433.0,1.85182944]
[1664589458262,0.257096,19435.0,19433.0,2.10915272]
[1664589458488,0.257096,19435.0,19433.0,1.85182944]
[1664589458711,0.257096,19435.0,19433.0,1.64414844]
[1664589459144,0.257096,19435.0,19433.0,0.74362244]
[1664589459456,0.257096,19435.0,19433.0,0.82262244]
[1664589459676,0.357522,19434.0,19433.0,1.72314844]
[1664589459894,0.257096,19435.0,19433.0,1.72314844]
[1664589460365,0.357522,19434.0,19433.0,1.72314844]
[1664589460588,0.257096,19435.0,19433.0,0.74362244]
[1664589460837,0.257096,19435.0,19434.0,0.04400496]
[1664589461049,0.614618,19435.0,19433.0,1.79789178]
[1664589461295,0.257096,19435.0,19434.0,0.078]
[1664589461519,0.486071,19435.0,19434.0,0.078]
[1664589461742,0.128549,19435.0,19434.0,0.078]
[1664589461970,0.486071,19435.0,19434.0,0.078]
[1664589462194,0.128549,19435.0,19434.0,0.078]
[1664589462416,0.486071,19435.0,19434.0,0.078]
[1664589462640,0.128549,19435.0,19434.0,0.078]
[1664589462860,0.486071,19435.0,19434.0,0.078]
[1664589463096,0.128549,19435.0,19433.0,1.79789178]
[1664589463312,0.128549,19435.0,19434.0,0.078]
[1664589463539,0.486071,19435.0,19434.0,0.078]
[1664589463759,0.128549,19435.0,19434.0,0.60773684]
[1664589463975,0.128549,19435.0,19434.0,0.25252074]
[1664589464199,0.20683401,19436.0,19434.0,0.30252074]
[1664589464200,0.29502611,19436.0,19434.0,0.30252074]
[1664589464463,0.357522,19435.0,19434.0,1.38490974]
[1664589464687,0.29502611,19436.0,19434.0,1.30690974]
[1664589464907,0.357522,19435.0,19434.0,0.45645374]
[1664589465104,0.29502611,19436.0,19434.0,0.40645374]
[1664589465331,0.357522,19435.0,19434.0,1.38490974]
[1664589465554,0.357522,19435.0,19434.0,0.48445374]
[1664589465799,0.29502611,19436.0,19434.0,1.43490974]
[1664589466000,0.357522,19435.0,19434.0,1.38490974]
[1664589466217,0.357522,19435.0,19434.0,1.43490974]
[1664589466432,0.29502611,19436.0,19434.0,1.43490974]
[1664589466651,0.357522,19435.0,19434.0,1.35690974]
[1664589467267,0.29502611,19436.0,19434.0,1.35690974]
[1664589467483,0.29502611,19436.0,19434.0,1.43490974]
[1664589467712,0.29002611,19436.0,19434.0,1.38490974]
[1664589467927,0.357522,19435.0,19434.0,1.1626949]
[1664589468149,0.29002611,19436.0,19434.0,1.67442634]
[1664589468390,0.29002611,19436.0,19434.0,0.77397034]
[1664589468601,0.29002611,19436.0,19434.0,0.69597034]
[1664589469408,0.49486544,19436.0,19434.0,1.1094349]
[1664589469636,0.357522,19435.0,19434.0,0.2089789]
[1664589469857,0.357522,19435.0,19434.0,0.5948879]
[1664589470079,0.33037401,19436.0,19434.0,0.5948879]
[1664589470279,0.357522,19435.0,19434.0,0.5948879]
[1664589470595,0.357522,19435.0,19434.0,0.1309789]
[1664589470811,0.3908964,19436.0,19434.0,0.5168879]
[1664589470983,0.357522,19435.0,19434.0,0.5168879]
[1664589471156,0.69998344,19436.0,19434.0,0.1309789]
[1664589471370,0.3978699,19435.0,19434.0,0.5948889]
[1664589471808,0.69998344,19436.0,19434.0,0.5948889]
[1664589472214,0.357522,19435.0,19434.0,0.2089789]
[1664589472647,0.357522,19435.0,19434.0,0.1309789]
[1664589473093,0.357522,19435.0,19434.0,0.5168899]
[1664589473324,0.357522,19435.0,19434.0,0.5948899]
[1664589474721,0.357522,19435.0,19434.0,0.5168899]
[1664589475377,0.35295229,19436.0,19434.0,0.5948899]
[1664589475588,0.357522,19435.0,19434.0,0.5948879]
[1664589476913,0.357522,19435.0,19434.0,0.5168879]
[1664589477372,0.357522,19435.0,19434.0,0.5948879]
[1664589477830,0.2924299,19436.0,19434.0,0.5948879]
[1664589478070,0.63924583,19436.0,19434.0,0.5948879]
[1664589478294,0.33015879,19436.0,19434.0,0.5948879]
[1664589478531,0.35743938,19435.0,19434.0,0.5948879]
[1664589478770,0.28981089,19436.0,19434.0,0.9276699]
[1664589478991,0.28981089,19436.0,19434.0,0.72469449]
[1664589479225,0.28981089,19436.0,19435.0,0.66660404]
[1664589479449,0.28981089,19436.0,19434.0,1.26398249]
[1664589479691,0.28981089,19436.0,19435.0,0.46846059]
[1664589479913,0.28981089,19436.0,19435.0,0.16094359]
[1664589480354,0.252082,19436.0,19435.0,0.11094359]
[1664589480576,0.609599,19436.0,19434.0,1.23598249]
[1664589480792,0.252082,19436.0,19434.0,1.54506953]
[1664589481015,0.357517,19435.0,19434.0,1.23924249]
[1664589481237,0.252082,19436.0,19434.0,1.23924249]
[1664589481454,0.252082,19436.0,19434.0,0.34678549]
[1664589482625,0.252082,19436.0,19434.0,0.33878549]
[1664589483071,0.252082,19436.0,19435.0,0.357517]
[1664589483290,0.252082,19436.0,19434.0,1.18598249]
[1664589483528,0.252082,19436.0,19434.0,1.19398249]
[1664589483981,0.197082,19436.0,19435.0,0.04400496]
[1664589484637,0.358453,19435.0,19434.0,1.0394359]
[1664589484879,0.000936,19435.0,19434.0,1.03911567]
[1664589485079,0.000936,19435.0,19434.0,1.03111567]
[1664589485315,0.000936,19435.0,19434.0,1.03190797]
[1664589485532,0.000936,19435.0,19434.0,1.04290797]
[1664589486468,0.143018,19436.0,19435.0,0.04400496]
[1664589487124,0.143018,19436.0,19434.0,1.03190797]
[1664589487586,0.143018,19436.0,19435.0,0.359517]
[1664589487816,0.143018,19436.0,19435.0,0.002]
[1664589488044,0.500535,19436.0,19435.0,0.002]
[1664589488271,0.58494669,19436.0,19435.0,0.002]
[1664589488500,0.64546908,19436.0,19435.0,0.002]
[1664589488724,0.64546908,19436.0,19434.0,0.51656767]
[1664589488953,0.3978649,19435.0,19434.0,0.51656767]
[1664589489132,0.3978649,19435.0,19434.0,0.51762478]
[1664589489357,0.70496166,19435.0,19434.0,0.01004178]
[1664589489569,0.3978649,19435.0,19434.0,0.01004178]
[1664589490720,0.3978649,19435.0,19434.0,0.00304178]
[1664589490896,0.76548405,19435.0,19434.0,0.00304178]
[1664589491334,0.0403479,19435.0,19434.0,0.00304178]
[1664589491523,0.70496166,19435.0,19434.0,0.01004178]
[1664589491734,0.3978649,19435.0,19434.0,0.01004178]
[1664589491945,0.0403479,19435.0,19434.0,0.01004178]
[1664589492187,0.357517,19435.0,19434.0,0.01004178]
[1664589492343,0.3978649,19435.0,19434.0,0.01004178]
[1664589492553,0.3978649,19435.0,19434.0,0.00304178]
[1664589492978,0.40385994,19435.0,19434.0,0.00304178]
[1664589493189,0.3978649,19435.0,19434.0,0.00304178]
[1664589493457,0.3978649,19435.0,19434.0,0.00504178]
[1664589494788,0.28233227,19436.0,19434.0,0.13168178]
[1664589495014,0.357517,19435.0,19434.0,0.13168178]
[1664589495448,0.3978649,19435.0,19434.0,0.13668178]
[1664589495794,0.357517,19435.0,19434.0,0.13668178]
[1664589496011,0.3978649,19435.0,19434.0,0.13668178]
[1664589496990,0.357517,19435.0,19434.0,0.13668178]
[1664589497915,0.3978649,19435.0,19434.0,0.13668178]
[1664589498134,0.45838729,19435.0,19434.0,0.00804178]
[1664589498737,0.3978649,19435.0,19434.0,0.00304178]
[1664589498958,0.45838729,19435.0,19434.0,0.00304178]
[1664589499154,0.46438233,19435.0,19434.0,0.00304178]
[1664589499597,0.46438233,19435.0,19434.0,0.00504178]
[1664589500671,0.46438233,19435.0,19434.0,0.00304178]
[1664589501499,0.46438233,19435.0,19434.0,0.00504178]
[1664589501718,0.40385994,19435.0,19434.0,0.00504178]
[1664589501927,0.46438233,19435.0,19434.0,0.00504178]
[1664589502293,0.40385994,19435.0,19434.0,0.00504178]
[1664589502664,0.46438233,19435.0,19434.0,0.00304178]
[1664589502883,0.40385994,19435.0,19434.0,0.00304178]
[1664589503159,0.3978649,19435.0,19434.0,0.00304178]
[1664589503490,0.3978649,19435.0,19434.0,0.00504178]
[1664589504281,0.3983319,19435.0,19434.0,0.00504178]
[1664589504694,0.3983319,19435.0,19434.0,0.00304178]
[1664589504914,0.40432694,19435.0,19434.0,0.00304178]
[1664589505123,0.3983319,19435.0,19434.0,0.00304178]
[1664589505642,0.3983319,19435.0,19434.0,0.00504178]
[1664589506818,0.3983319,19435.0,19434.0,0.00304178]
[1664589507453,0.40432694,19435.0,19434.0,0.00504178]
[1664589508958,0.40432694,19435.0,19434.0,0.00304178]
[1664589509180,0.40432694,19435.0,19434.0,0.00294662]
[1664589509314,0.3983319,19435.0,19434.0,0.00294662]
[1664589509532,0.3983319,19435.0,19434.0,0.00494662]
[1664589509954,0.3983319,19435.0,19434.0,0.00815462]
[1664589510243,0.357984,19435.0,19434.0,0.00815462]
[1664589510454,0.3983319,19435.0,19434.0,0.00815462]
[1664589510891,0.3983319,19435.0,19434.0,0.00615462]
[1664589511226,0.000467,19435.0,19434.0,0.00615462]
[1664589511482,0.357984,19435.0,19434.0,0.00615462]
[1664589511705,0.357984,19435.0,19434.0,0.00815462]
[1664589511910,0.3983319,19435.0,19434.0,0.00815462]
[1664589512345,0.357984,19435.0,19434.0,0.00815462]
[1664589512687,0.357984,19435.0,19434.0,0.00615462]
[1664589512901,0.3983319,19435.0,19434.0,0.00615462]
[1664589513356,0.3983319,19435.0,19434.0,0.13479462]
[1664589513567,0.3983319,19435.0,19434.0,0.13679462]
[1664589514804,0.3983319,19435.0,19434.0,0.00615462]
[1664589515304,0.3983319,19435.0,19434.0,0.13479462]
[1664589515519,0.3983319,19435.0,19434.0,0.13679462]
[1664589516193,0.0408149,19435.0,19434.0,0.13679462]
[1664589516387,0.3983319,19435.0,19434.0,0.13679462]
[1664589516876,0.3983319,19435.0,19434.0,0.39207562]
[1664589517093,0.3981839,19435.0,19434.0,0.39207562]
[1664589517533,0.3981839,19435.0,19434.0,0.39707562]
[1664589518296,0.0406669,19435.0,19434.0,0.39707562]
[1664589518599,0.357836,19435.0,19434.0,0.39707562]
[1664589518827,0.3981839,19435.0,19434.0,0.39207562]
[1664589519041,0.0406669,19435.0,19434.0,0.39207562]
[1664589519703,0.0406669,19435.0,19434.0,0.39707562]
[1664589519931,0.3981839,19435.0,19434.0,0.01115462]
[1664589520154,0.45870629,19435.0,19434.0,0.01115462]
[1664589520731,0.3981839,19435.0,19434.0,0.01115462]
[1664589520946,0.3981839,19435.0,19434.0,0.00615462]
[1664589521594,0.3981839,19435.0,19434.0,0.00815462]
[1664589522955,0.45870629,19435.0,19434.0,0.00615462]
[1664589523156,0.3981839,19435.0,19434.0,0.00615462]
[1664589523492,0.45870629,19435.0,19434.0,0.00815462]
[1664589524147,0.49636008,19435.0,19434.0,0.00815462]
[1664589524590,0.84380691,19435.0,19434.0,0.00815462]
[1664589524812,0.84380691,19435.0,19434.0,0.00615462]
[1664589525487,0.84380691,19435.0,19434.0,0.01115462]
[1664589525708,0.49636325,19435.0,19434.0,0.01115462]
[1664589525935,0.13884625,19435.0,19434.0,0.01115462]
[1664589526389,0.84380691,19435.0,19434.0,0.01115462]
[1664589526832,0.84380691,19435.0,19434.0,0.00615462]
[1664589527498,0.84380691,19435.0,19434.0,0.00815462]
[1664589528082,0.53671015,19435.0,19434.0,0.00815462]
[1664589529189,0.13884909,19435.0,19434.0,0.00815462]
[1664589529402,0.13884909,19435.0,19434.0,0.00615462]
[1664589529613,0.09849518,19435.0,19434.0,0.01115462]
[1664589529893,0.45601218,19435.0,19434.0,0.01115462]
[1664589530103,0.49636621,19435.0,19434.0,0.01115462]
[1664589530256,0.45601218,19435.0,19434.0,0.01115462]
[1664589530475,0.49636637,19435.0,19434.0,0.01115462]
[1664589530902,0.45601218,19435.0,19434.0,0.00615462]
[1664589531650,0.4963664,19435.0,19434.0,0.00815462]
[1664589532484,0.45601218,19435.0,19434.0,0.00815462]
[1664589532699,0.53671015,19435.0,19434.0,0.00815462]
[1664589532909,0.17919315,19435.0,19434.0,0.00615462]
[1664589533474,0.53671015,19435.0,19434.0,0.00615462]
[1664589533781,0.53671015,19435.0,19434.0,0.01115462]
[1664589534886,0.84382282,19435.0,19434.0,0.00615462]
[1664589535099,0.78328452,19435.0,19434.0,0.00615462]
[1664589535315,0.84382307,19435.0,19434.0,0.00615462]
[1664589535621,1.11115054,19435.0,19434.0,0.00615462]
[1664589535794,0.80405378,19435.0,19434.0,0.00815462]
[1664589536843,0.80405378,19435.0,19434.0,0.00615462]
[1664589537266,0.5367253,19435.0,19434.0,0.00615462]
[1664589537558,0.5367253,19435.0,19434.0,0.01115462]
[1664589537805,0.47618776,19435.0,19434.0,0.01115462]
[1664589538274,0.53672513,19435.0,19434.0,0.01115462]
[1664589538841,0.53672513,19435.0,19434.0,0.00615462]
[1664589539764,0.53672513,19435.0,19434.0,0.00815462]
[1664589540214,0.17920813,19435.0,19434.0,0.00815462]
[1664589540419,0.13886722,19435.0,19434.0,0.00815462]
[1664589540688,0.45602716,19435.0,19434.0,0.00815462]
[1664589540874,0.45602716,19435.0,19434.0,0.00615462]
[1664589541085,0.53672513,19435.0,19434.0,0.00615462]
[1664589541623,1.70893504,19434.0,19430.0,0.385994]
[1664589541825,0.24727599,19431.0,19423.0,1.66906705]
[1664589542052,0.10599504,19424.0,19423.0,1.97603144]
[1664589542253,0.20483933,19424.0,19423.0,0.96924844]
[1664589542480,0.20483933,19424.0,19423.0,1.24194223]
[1664589542637,0.55230775,19427.0,19423.0,1.24194223]
[1664589542856,0.128612,19426.0,19423.0,0.78442523]
[1664589543265,0.33345133,19426.0,19424.0,0.357517]
[1664589543460,0.128612,19426.0,19423.0,0.86286775]
[1664589543687,0.128612,19426.0,19424.0,0.357517]
[1664589544114,0.128612,19426.0,19423.0,0.87586775]
[1664589544711,0.128612,19426.0,19423.0,0.65317396]
[1664589544944,0.128612,19426.0,19424.0,0.357517]
[1664589545160,0.128612,19426.0,19423.0,0.69017396]
[1664589545376,0.128612,19426.0,19423.0,0.69289409]
[1664589545586,0.128612,19426.0,19423.0,0.70489409]
[1664589545856,0.128612,19426.0,19424.0,0.357517]
[1664589546126,0.128612,19426.0,19423.0,1.09102309]
[1664589546346,0.257218,19426.0,19424.0,0.486221]
[1664589546561,0.257218,19426.0,19424.0,0.128704]
[1664589546898,0.257218,19426.0,19424.0,0.386117]
[1664589547445,0.257218,19426.0,19425.0,0.357517]
[1664589547630,0.257218,19426.0,19424.0,0.580857]
[1664589547848,0.257218,19426.0,19425.0,0.357517]
[1664589548060,0.257218,19426.0,19424.0,0.580857]
[1664589548290,0.257218,19426.0,19425.0,0.357517]
[1664589548501,0.257218,19426.0,19424.0,1.095682]
[1664589548989,0.257218,19426.0,19424.0,1.079682]
[1664589549593,0.257218,19426.0,19425.0,0.407517]
[1664589550072,0.257218,19426.0,19425.0,0.05]
[1664589550314,0.128599,19427.0,19425.0,1.06944014]
[1664589550531,0.128591,19429.0,19426.0,1.2844604]
[1664589550745,0.128591,19429.0,19428.0,0.04400496]
[1664589550944,0.128591,19429.0,19428.0,0.5557364]
[1664589551457,0.128591,19429.0,19428.0,0.9132534]
[1664589551688,0.128591,19429.0,19428.0,0.5617364]
[1664589552883,0.128591,19429.0,19428.0,0.5557364]
[1664589553737,0.128591,19429.0,19428.0,0.57744815]
[1664589553948,0.128591,19429.0,19428.0,0.57705415]
[1664589554216,0.128591,19429.0,19428.0,0.93457115]
[1664589554454,0.128591,19429.0,19428.0,0.82207393]
[1664589554699,0.128591,19429.0,19428.0,1.23285093]
[1664589554905,0.13815967,19433.0,19428.0,1.26679093]
[1664589555153,0.13815967,19433.0,19430.0,1.6]
[1664589555374,0.13815967,19433.0,19432.0,0.04400496]
[1664589555597,0.00959067,19433.0,19430.0,0.51173144]
[1664589555816,0.00959067,19433.0,19431.0,0.514676]
[1664589556033,0.357517,19432.0,19431.0,0.514672]
[1664589556263,0.67806315,19433.0,19431.0,0.128696]
[1664589556480,0.67806315,19433.0,19431.0,0.514671]
[1664589556660,0.67206811,19433.0,19431.0,0.514671]
[1664589556879,0.80063711,19433.0,19431.0,0.514671]
[1664589557105,0.05,19432.0,19431.0,0.514671]
[1664589557661,0.357517,19432.0,19431.0,0.527671]
[1664589557883,0.49953539,19433.0,19431.0,0.527671]
[1664589558101,0.80663215,19433.0,19431.0,0.53035465]
[1664589558540,0.357517,19432.0,19431.0,0.53035465]
[1664589558784,0.49953539,19433.0,19431.0,0.53035465]
[1664589558988,0.357517,19432.0,19431.0,0.51735465]
[1664589559207,0.49953539,19433.0,19431.0,0.87487165]
[1664589559427,0.49953539,19433.0,19431.0,0.51735465]
[1664589559690,0.357517,19432.0,19431.0,0.51735465]
[1664589559912,0.49953539,19433.0,19431.0,0.52435465]
[1664589561040,0.46351204,19432.0,19431.0,0.51735465]
[1664589561495,0.49354035,19433.0,19431.0,0.51735465]
[1664589561710,0.49354035,19433.0,19431.0,0.53435465]
[1664589563060,0.10599504,19432.0,19431.0,0.51735465]
[1664589563499,0.49354035,19433.0,19431.0,0.51735465]
[1664589563721,0.357517,19432.0,19431.0,0.52735465]
[1664589564165,0.49354035,19433.0,19431.0,0.52735465]
[1664589564396,0.357517,19432.0,19431.0,0.52735465]
[1664589564609,0.10599504,19432.0,19431.0,0.52735465]
[1664589564832,0.49354035,19433.0,19431.0,0.52735465]
[1664589565009,0.80063711,19433.0,19431.0,0.51735465]
[1664589565192,0.49354035,19433.0,19431.0,0.51735465]
[1664589565613,0.49354035,19433.0,19431.0,0.53135465]
[1664589567084,0.49354035,19433.0,19431.0,0.51735465]
[1664589567215,0.80063711,19433.0,19431.0,0.51735465]
[1664589567432,0.357517,19432.0,19431.0,0.51735465]
[1664589567638,0.357517,19432.0,19431.0,0.52735465]
[1664589567853,0.49354035,19433.0,19431.0,0.52735465]
[1664589568070,0.80063711,19433.0,19431.0,0.52735465]
[1664589568717,0.357517,19432.0,19431.0,0.52735465]
[1664589568937,0.80063711,19433.0,19431.0,0.51735465]
[1664589569780,0.80063711,19433.0,19431.0,0.52435465]
[1664589570021,0.357517,19432.0,19431.0,0.52435465]
[1664589570243,0.80063711,19433.0,19431.0,0.52435465]
[1664589570477,0.357517,19432.0,19431.0,0.39565865]
[1664589570695,0.80063711,19433.0,19431.0,0.39565865]
[1664589570922,0.46351204,19432.0,19431.0,0.38865865]
[1664589571142,0.10599504,19432.0,19431.0,0.00268365]
[1664589571354,0.7706088,19432.0,19431.0,0.00268365]
[1664589571586,0.7706088,19432.0,19430.0,0.128663]
[1664589571805,0.96957777,19433.0,19430.0,0.128663]
[1664589572030,0.357517,19432.0,19430.0,0.128663]
[1664589572247,0.92920611,19433.0,19430.0,0.128663]
[1664589572672,0.357517,19432.0,19431.0,0.00268365]
[1664589573812,0.357517,19432.0,19431.0,0.01268365]
[1664589574256,0.66461376,19432.0,19431.0,0.01268365]
[1664589574951,0.357517,19432.0,19431.0,0.00268365]
[1664589575653,0.357517,19432.0,19429.0,0.37175046]
[1664589575881,0.96977477,19433.0,19431.0,0.007]
[1664589576109,0.357517,19432.0,19431.0,0.007]
[1664589576567,0.357517,19432.0,19431.0,0.00968365]
[1664589577010,0.357517,19432.0,19431.0,0.00268365]
[1664589577490,0.357517,19432.0,19430.0,0.385995]
[1664589577970,0.357517,19432.0,19431.0,0.007]
[1664589578191,0.66461376,19432.0,19431.0,0.007]
[1664589578414,0.357517,19432.0,19431.0,0.00968365]
[1664589579116,0.66461376,19432.0,19431.0,0.00268365]
[1664589579561,0.357517,19432.0,19431.0,0.00268365]
[1664589579778,0.357517,19432.0,19431.0,0.007]
[1664589581136,1.1763452,19432.0,19429.0,0.24304146]
[1664589581468,1.1763452,19432.0,19428.0,0.514713]
[1664589581469,0.357517,19431.0,19428.0,0.128676]
[1664589581598,0.10599504,19430.0,19428.0,0.128676]
[1664589581870,0.10599504,19430.0,19429.0,0.008]
[1664589582095,0.03108344,19430.0,19429.0,0.008]
[1664589582768,0.30709676,19431.0,19429.0,0.008]
[1664589582983,0.357517,19430.0,19428.0,0.38872187]
[1664589583211,0.26314904,19430.0,19428.0,0.00268987]
[1664589583434,0.257154,19430.0,19428.0,0.38871987]
[1664589583879,0.05,19429.0,19428.0,0.40471987]
[1664589584129,0.26314904,19430.0,19428.0,0.40472087]
[1664589584357,0.257154,19430.0,19428.0,0.01868987]
[1664589585005,0.257154,19430.0,19428.0,0.13140487]
[1664589585286,0.257154,19430.0,19428.0,0.51743487]
[1664589585502,0.05,19429.0,19428.0,0.51743487]
[1664589585749,0.257154,19430.0,19428.0,0.51743487]
[1664589585750,0.26314904,19430.0,19428.0,0.51743487]
[1664589585950,0.26314904,19430.0,19428.0,0.14440487]
[1664589586427,0.05,19429.0,19428.0,0.14440487]
[1664589586644,0.257154,19430.0,19428.0,0.53043487]
[1664589586863,0.257154,19430.0,19428.0,0.14440487]
[1664589587084,0.257154,19430.0,19428.0,0.13140487]
[1664589587312,0.26314904,19430.0,19429.0,0.357517]
[1664589587535,0.26314904,19430.0,19428.0,0.13140487]
[1664589587767,0.257154,19430.0,19428.0,0.13140487]
[1664589587985,0.26314904,19430.0,19429.0,0.011]
[1664589588223,0.28886444,19430.0,19429.0,0.011]
[1664589588450,0.32688951,19430.0,19429.0,0.011]
[1664589589185,0.32688951,19430.0,19428.0,0.51742962]
[1664589589635,0.32688951,19430.0,19429.0,0.357517]
[1664589589862,0.32688951,19430.0,19428.0,0.53042962]
[1664589590523,0.05,19429.0,19428.0,0.53042962]
[1664589590748,0.29517907,19430.0,19428.0,0.53042962]
[1664589590950,0.05,19429.0,19428.0,0.53042962]
[1664589591257,0.29517907,19430.0,19428.0,0.51742962]
[1664589591258,0.257154,19430.0,19428.0,0.51742962]
[1664589591980,0.257154,19430.0,19428.0,0.53042962]
[1664589592426,0.128577,19430.0,19428.0,0.40171462]
[1664589592647,0.10599504,19429.0,19428.0,0.14440362]
[1664589592910,0.357517,19429.0,19428.0,0.53042962]
[1664589593116,0.10599504,19429.0,19428.0,0.51742962]
[1664589593593,0.257157,19430.0,19428.0,0.51742962]
[1664589593813,0.56425376,19430.0,19428.0,0.53042962]
[1664589594036,0.46351204,19429.0,19428.0,0.53042962]
[1664589594272,0.10599504,19429.0,19428.0,0.53042962]
[1664589595126,0.10599504,19429.0,19428.0,0.51742962]
[1664589595739,0.10599504,19429.0,19428.0,0.14440362]
[1664589595943,0.357517,19429.0,19428.0,0.53043162]
[1664589596124,0.10599504,19429.0,19428.0,0.14440362]
[1664589596344,0.10599504,19429.0,19428.0,0.53043162]
[1664589596849,0.05,19429.0,19428.0,0.88794862]
[1664589597084,0.257354,19430.0,19428.0,0.87494662]
[1664589597327,0.257354,19430.0,19428.0,0.51742962]
[1664589597543,0.10599504,19429.0,19428.0,0.51742962]
[1664589597754,0.10599504,19429.0,19428.0,0.52842962]
[1664589598247,0.257354,19430.0,19428.0,0.52842962]
[1664589598462,0.257354,19430.0,19428.0,0.52842862]
[1664589598901,0.257354,19430.0,19428.0,1.40063862]
[1664589599053,0.257354,19430.0,19429.0,0.19006386]
[1664589599269,0.257354,19430.0,19429.0,0.407517]
[1664589599893,0.257354,19430.0,19429.0,0.007]
[1664589600115,0.257354,19430.0,19429.0,0.057]
[1664589600773,0.257354,19430.0,19429.0,0.007]
[1664589601269,0.257354,19430.0,19428.0,1.93290306]
[1664589601490,0.257354,19430.0,19429.0,0.357517]
[1664589601727,0.257354,19430.0,19429.0,0.05]
[1664589601957,0.247354,19430.0,19429.0,0.407517]
[1664589602180,0.118773,19430.0,19429.0,0.407517]
[1664589602428,0.118773,19430.0,19429.0,0.64835901]
[1664589602663,0.118773,19430.0,19429.0,1.16009045]
[1664589602887,0.118773,19430.0,19429.0,1.36999873]
[1664589604044,0.118773,19430.0,19429.0,1.02948173]
[1664589604554,0.118773,19430.0,19429.0,1.38699873]
[1664589605284,0.118773,19430.0,19429.0,1.01248173]
[1664589605509,0.118773,19430.0,19429.0,0.96248173]
[1664589605737,0.118773,19430.0,19429.0,0.72163972]
[1664589605958,0.118773,19430.0,19429.0,0.74763972]
[1664589606863,0.118773,19430.0,19429.0,1.10515672]
[1664589607129,0.118773,19430.0,19429.0,0.20990828]
[1664589607355,0.118773,19430.0,19428.0,1.54681562]
[1664589607590,0.118773,19430.0,19428.0,0.13140362]
[1664589607591,0.247349,19430.0,19428.0,0.13140362]
[1664589607815,0.247349,19430.0,19429.0,0.357517]
[1664589608064,0.5604408,19430.0,19428.0,1.04812262]
[1664589608301,0.247349,19430.0,19428.0,0.40475462]
[1664589608519,0.55444576,19430.0,19428.0,0.53343162]
[1664589608743,0.247349,19430.0,19428.0,0.53343162]
[1664589609194,0.247349,19430.0,19428.0,0.51743162]